lending/lending_fUSD_20240810
["ID","MTS","AMOUNT","RATE_DAILY","PERIOD"]
[334576573,1723260634102,-591.87,0.000103,2]
[334576574,1723260634112,-356.46,0.00010449,2]
[334576575,1723260634122,-356.46,0.00010449,2]
[334576576,1723260634132,-356.46,0.00010449,2]
[334576577,1723260634141,-499.99,0.00010466,2]
[334576578,1723260634150,-4818.15,0.00010466,2]
[334576579,1723260634159,-202.85,0.00010481,2]
[334576580,1723260634170,-155.09795974,0.00010554,2]
[334576581,1723260634183,-182.32754451,0.00010554,2]
[334576582,1723260634193,-1257.28030912,0.00010554,2]
[334576583,1723260634202,-150.0,0.00010778,2]
[334576584,1723260634212,-530.87,0.00010778,2]
[334576585,1723260634222,-356.46,0.00010778,2]
[334576586,1723260634232,-530.87,0.00010778,2]
[334576587,1723260634242,-356.46,0.00010778,2]
[334576588,1723260634251,-150.0,0.00010778,2]
[334576589,1723260634262,-150.0,0.00010778,2]
[334576590,1723260634272,-530.87,0.00010778,2]
[334576591,1723260634281,-150.0,0.00010778,2]
[334576592,1723260634290,-150.0,0.00010778,2]
[334576593,1723260634300,-530.87,0.00010778,2]
[334576594,1723260634310,-150.0,0.00010778,2]
[334576595,1723260634319,-150.0,0.00010778,2]
[334576596,1723260634329,-150.0,0.00010778,2]
[334576597,1723260634338,-150.0,0.00010778,2]
[334576598,1723260634347,-530.87,0.00010778,2]
[334576599,1723260634357,-150.0,0.00010778,2]
[334576600,1723260634367,-530.87,0.00010778,2]
[334576601,1723260634377,-150.0,0.00010778,2]
[334576602,1723260634387,-356.46,0.00010778,2]
[334576603,1723260634395,-530.87,0.00010778,2]
[334576604,1723260634404,-356.46,0.00010778,2]
[334576605,1723260634413,-150.0,0.00010778,2]
[334576606,1723260634424,-150.0,0.00010778,2]
[334576607,1723260634433,-530.87,0.00010778,2]
[334576608,1723260634443,-150.0,0.00010778,2]
[334576609,1723260634452,-150.0,0.00010778,2]
[334576610,1723260634462,-356.46,0.00010778,2]
[334576611,1723260634472,-150.0,0.00010778,2]
[334576612,1723260634482,-150.0,0.00010778,2]
[334576613,1723260634492,-356.46,0.00010778,2]
[334576614,1723260634501,-295.71555411,0.000109,2]
[334576615,1723260634511,-2500.0,0.000109,2]
[334576616,1723260634521,-180.47523283,0.000109,2]
[334576617,1723260634531,-420.0,0.0001094,2]
[334576618,1723260634540,-250.0,0.00010959,2]
[334576619,1723260634550,-163.34208761,0.00010997,2]
[334576620,1723260634560,-674.2721743,0.00010998,2]
[334576621,1723260634569,-3222.8507503,0.00010998,2]
[334576622,1723260634579,-1311.5050756,0.00010998,2]
[334576623,1723260634589,-708.6324713,0.00010998,2]
[334576624,1723260634598,-1781.70210475,0.00011,2]
[334576625,1723260634630,-279.69657276,0.00011,2]
[334576626,1723260634642,-662.54834617,0.00011,2]
[334576627,1723260634658,-711.6,0.00011,2]
[334576628,1723260638112,-4186.27582778,0.00011,2]
[334576629,1723260638126,-397.12998192,0.00011,2]
[334576630,1723260638138,-4377.3702295,0.00011,2]
[334576631,1723260638270,-404.64145571,0.00011,2]
[334576632,1723260638430,-2869.05284405,0.00011,2]
[334576634,1723260640019,-428.70798236,0.00011,2]
[334576635,1723260640031,-1968.20816771,0.00011,2]
[334576636,1723260640042,-2421.6322968,0.00011,2]
[334576637,1723260640203,-1852.80105289,0.00011,2]
[334576638,1723260640213,-69.62150173,0.00011,2]
[334576639,1723260640224,-522.85526615,0.00011,2]
[334576640,1723260640382,-2422.93774298,0.00011,2]
[334576641,1723260641491,-14845.56369122,0.00011,2]
[334576736,1723260646434,-150.0,0.00010778,2]
[334576737,1723260646444,-150.0,0.00010778,2]
[334576738,1723260646454,-19.31715993,0.00010778,2]
[334576742,1723260671743,182.56,8.984e-05,2]
[334576752,1723260734954,168.19153292,8.984e-05,2]
[334576785,1723261212857,173.43,8.31e-05,2]
[334576814,1723261706172,164.75,8.219e-05,2]
[334576816,1723261802679,155.60543979,8.219e-05,2]
[334576817,1723261804872,292.38104697,8.219e-05,2]
[334576818,1723261809754,364.60902927,8.219e-05,2]
[334576819,1723261819224,255.67394178,8.219e-05,2]
[334576871,1723261832051,-265.14,9.935e-05,2]
[334576873,1723261832061,-155.92716914,9.962e-05,2]
[334576874,1723261832070,-159.67580748,9.962e-05,2]
[334576875,1723261832080,-78.50424406,0.0001,2]
[334576876,1723261832172,-471.49575594,0.0001,2]
[334576877,1723261832182,-347.32868923,0.0001,2]
[334576878,1723261832194,-757.13168339,0.0001,2]
[334576879,1723261832206,-3609.84730553,0.0001,2]
[334576880,1723261832215,-780.36851333,0.00010073,2]
[334576890,1723261838417,-349.19265002,0.00010073,2]
[334576891,1723261838429,-3545.23258283,0.00010073,2]
[334576903,1723261840067,-907.2479064,0.00010073,2]
[334576938,1723261843214,-1257.99548884,0.00010073,2]
[334576939,1723261844475,-457.54355105,0.00010073,2]
[334576940,1723261844484,-800.0,0.0001012,2]
[334576941,1723261844494,-156.62,0.00010182,2]
[334576942,1723261844507,-200.0,0.00010295,2]
[334576943,1723261844516,-150.0,0.00010384,2]
[334576944,1723261844526,-300.0,0.000104,2]
[334576945,1723261844535,-185.48,0.00010416,2]
[334576946,1723261844546,-164.75,0.0001048,2]
[334576947,1723261844555,-150.0,0.000105,2]
[334576948,1723261844564,-150.0,0.000105,2]
[334576949,1723261844574,-356.46,0.000105,2]
[334576950,1723261844584,-150.0,0.000105,2]
[334576951,1723261844593,-150.0,0.000105,2]
[334576952,1723261844602,-150.0,0.000105,2]
[334576953,1723261844612,-150.0,0.000105,2]
[334576954,1723261844621,-356.46,0.00010578,2]
[334576955,1723261844630,-337.14,0.000106,2]
[334576956,1723261844639,-150.0,0.000106,2]
[334576957,1723261844648,-150.0,0.000106,2]
[334576958,1723261844658,-35.54644895,0.0001063,2]
[334576959,1723261844683,-1385.27355105,0.0001063,2]
[334576960,1723261844692,-127.67524436,0.000107,2]
[334576980,1723261846375,-229.38475564,0.000107,2]
[334576981,1723261846385,-1032.18874885,0.0001089,2]
[334576984,1723261846396,-227.94968673,0.0001089,2]
[334576986,1723261846406,-2951.12893,0.0001089,2]
[334576987,1723261846416,-285.12222583,0.000109,2]
[334576989,1723261846426,-356.80208263,0.000109,2]
[334576991,1723261846436,-479.58,0.00010904,2]
[334576992,1723261846445,-150.0,0.00010904,2]
[334576993,1723261846455,-356.46,0.00010904,2]
[334576994,1723261846464,-356.46,0.00010904,2]
[334576995,1723261846474,-150.0,0.00010904,2]
[334576996,1723261846483,-150.0,0.00010904,2]
[334576997,1723261846493,-356.46,0.00010904,2]
[334576998,1723261846505,-356.46,0.00010904,2]
[334576999,1723261846515,-150.0,0.00010904,2]
[334577000,1723261846525,-150.0,0.00010904,2]
[334577001,1723261846534,-356.46,0.00010904,2]
[334577002,1723261846545,-150.0,0.00010904,2]
[334577003,1723261846555,-356.46,0.00010904,2]
[334577004,1723261846564,-150.0,0.00010904,2]
[334577005,1723261846574,-356.46,0.00010904,2]
[334577006,1723261846584,-676.0269362,0.00010998,2]
[334577007,1723261846594,-3102.3989522,0.00010998,2]
[334577008,1723261846603,-1150.90038949,0.00010998,2]
[334577009,1723261846619,-100.25982971,0.00010998,2]
[334577010,1723261846629,-1404.20418009,0.00011,2]
[334577011,1723261846640,-1003.68,0.00011,2]
[334577027,1723262220323,239.07,8.219e-05,2]
[334577028,1723262271805,394.32456616,8.219e-05,2]
[334577029,1723262290220,7580.60782448,8.219e-05,2]
[334577038,1723262684463,227.11,8.219e-05,2]
[334577052,1723263032197,-360.0,9.682e-05,2]
[334577053,1723263032207,-3116.12861861,9.77e-05,2]
[334577054,1723263032220,-2019.02952842,9.77e-05,2]
[334577055,1723263032254,-500.0,9.77e-05,2]
[334577056,1723263032311,-1904.64529424,9.77e-05,2]
[334577057,1723263032371,-16350.19655873,9.77e-05,2]
[334577058,1723263032381,-185.49,9.802e-05,2]
[334577059,1723263032391,-382.85,9.808e-05,2]
[334577060,1723263032400,-313.21,9.808e-05,2]
[334577061,1723263032410,-250.0,9.81e-05,2]
[334577062,1723263032419,-435.56,9.81e-05,2]
[334577063,1723263032429,-4657.5,9.83e-05,2]
[334577065,1723263032438,-1852.42,9.831e-05,2]
[334577067,1723263032448,-640.0,9.874e-05,2]
[334577069,1723263032458,-257.38,9.895e-05,2]
[334577071,1723263032468,-6713.44,9.895e-05,2]
[334577073,1723263032479,-200.0,9.916e-05,2]
[334577075,1723263032488,-860.27502339,9.956e-05,2]
[334577077,1723263032497,-150.0,9.965e-05,2]
[334577079,1723263032507,-6883.08,9.966e-05,2]
[334577081,1723263032516,-390.33,9.966e-05,2]
[334577083,1723263032526,-211.45,9.967e-05,2]
[334577085,1723263032535,-550.0,0.0001,2]
[334577087,1723263032545,-173.85,0.00010003,2]
[334577089,1723263032554,-356.46,0.00010082,2]
[334577091,1723263032563,-356.46,0.00010082,2]
[334577092,1723263032572,-796.89,0.00010241,2]
[334577093,1723263032583,-356.46,0.00010278,2]
[334577094,1723263032592,-259.0,0.0001033,2]
[334577095,1723263032602,-499.99,0.0001033,2]
[334577096,1723263032612,-426.27,0.00010378,2]
[334577097,1723263032621,-530.87,0.00010378,2]
[334577098,1723263032630,-150.0,0.00010378,2]
[334577099,1723263032639,-426.27,0.00010378,2]
[334577100,1723263032649,-356.46,0.00010378,2]
[334577101,1723263032658,-530.87,0.00010378,2]
[334577102,1723263032667,-426.27,0.00010378,2]
[334577103,1723263032676,-530.87,0.00010378,2]
[334577104,1723263032686,-150.0,0.00010378,2]
[334577105,1723263032695,-356.46,0.00010378,2]
[334577106,1723263032704,-530.87,0.00010378,2]
[334577107,1723263032713,-426.27,0.00010378,2]
[334577108,1723263032724,-150.0,0.00010378,2]
[334577109,1723263032734,-356.46,0.00010378,2]
[334577110,1723263032743,-530.87,0.00010378,2]
[334577111,1723263032753,-247.53,0.00010378,2]
[334577112,1723263032763,-426.27,0.00010378,2]
[334577113,1723263032771,-426.27,0.00010378,2]
[334577114,1723263032781,-227.11,0.00010466,2]
[334577115,1723263032789,-150.0,0.00010478,2]
[334577116,1723263032799,-507.94,0.00010478,2]
[334577117,1723263032808,-1812.6454,0.00010561,2]
[334577118,1723263032817,-150.0,0.00010578,2]
[334577119,1723263032826,-356.46,0.00010578,2]
[334577120,1723263032836,-1076.0,0.00010722,2]
[334577121,1723263032845,-5132.0,0.00010722,2]
[334577122,1723263032855,-289.0,0.00010722,2]
[334577123,1723263032864,-1204.0,0.00010722,2]
[334577124,1723263032873,-21751.0,0.00010722,2]
[334577125,1723263032883,-5840.0,0.00010722,2]
[334577126,1723263032892,-1672.0,0.00010722,2]
[334577127,1723263032902,-151.0,0.00010722,2]
[334577128,1723263032912,-151.661928,0.00010722,2]
[334577129,1723263032922,-151.0,0.00010722,2]
[334577130,1723263032931,-558.010109,0.00010722,2]
[334577131,1723263032942,-236.777246,0.00010722,2]
[334577132,1723263032951,-558.010109,0.00010722,2]
[334577133,1723263032964,-236.777246,0.00010722,2]
[334577134,1723263032978,-151.0,0.00010722,2]
[334577135,1723263032987,-151.0,0.00010722,2]
[334577136,1723263032996,-151.0,0.00010722,2]
[334577137,1723263033173,-756.463269,0.00010722,2]
[334577138,1723263033183,-756.463269,0.00010722,2]
[334577139,1723263033193,-151.0,0.00010722,2]
[334577140,1723263033203,-151.0,0.00010722,2]
[334577141,1723263033212,-659.965787,0.00010722,2]
[334577142,1723263033222,-659.965787,0.00010722,2]
[334577143,1723263033232,-5944.488899,0.00010722,2]
[334577144,1723263033242,-151.0,0.00010722,2]
[334577145,1723263033252,-4524.65260434,0.00010722,2]
[334577153,1723263038312,-1419.83629466,0.00010722,2]
[334577154,1723263038323,-151.0,0.00010722,2]
[334577155,1723263038336,-151.0,0.00010722,2]
[334577156,1723263038346,-1082.509653,0.00010722,2]
[334577157,1723263038355,-150.0,0.00010727,2]
[334577158,1723263038365,-176.17068352,0.00010731,2]
[334577159,1723263038384,-150.0,0.00010735,2]
[334577160,1723263038393,-150.0,0.00010766,2]
[334577161,1723263038406,-150.0,0.00010819,2]
[334577162,1723263038415,-150.0,0.00010822,2]
[334577163,1723263038425,-150.0,0.00010846,2]
[334577164,1723263038434,-150.0,0.00010878,2]
[334577165,1723263038445,-360.0,0.00010892,2]
[334577166,1723263038456,-586.96377062,0.00010899,2]
[334577167,1723263038465,-171.0008768,0.000109,2]
[334577168,1723263038475,-170.1095268,0.000109,2]
[334577169,1723263038485,-151.0,0.000109,2]
[334577170,1723263038494,-151.0,0.000109,2]
[334577171,1723263038504,-809.123397,0.000109,2]
[334577172,1723263038513,-809.123397,0.000109,2]
[334577173,1723263038523,-151.435402,0.000109,2]
[334577174,1723263038533,-151.0,0.000109,2]
[334577175,1723263038542,-151.0,0.000109,2]
[334577176,1723263038553,-151.442739,0.000109,2]
[334577177,1723263038562,-151.0,0.000109,2]
[334577178,1723263038571,-151.0,0.000109,2]
[334577179,1723263038580,-151.0,0.000109,2]
[334577180,1723263038590,-151.0,0.000109,2]
[334577181,1723263038599,-151.0,0.000109,2]
[334577182,1723263038608,-151.0,0.000109,2]
[334577183,1723263038617,-151.0,0.000109,2]
[334577184,1723263038626,-195.791664,0.000109,2]
[334577185,1723263038635,-151.0,0.000109,2]
[334577186,1723263038644,-151.846044,0.000109,2]
[334577187,1723263038654,-151.737354,0.000109,2]
[334577189,1723263038663,-332.390124,0.000109,2]
[334577191,1723263038673,-332.390124,0.000109,2]
[334577193,1723263038682,-332.390124,0.000109,2]
[334577195,1723263038691,-332.390124,0.000109,2]
[334577197,1723263038701,-151.0,0.000109,2]
[334577199,1723263038710,-151.0,0.000109,2]
[334577201,1723263038720,-151.0,0.000109,2]
[334577203,1723263038732,-231.297238,0.000109,2]
[334577205,1723263038741,-4283.715,0.000109,2]
[334577207,1723263038751,-151.0,0.000109,2]
[334577209,1723263038760,-151.0,0.000109,2]
[334577211,1723263038770,-153.470009,0.000109,2]
[334577213,1723263038779,-152.264986,0.000109,2]
[334577215,1723263038789,-151.0,0.000109,2]
[334577217,1723263038799,-151.0,0.000109,2]
[334577219,1723263038809,-152.523909,0.000109,2]
[334577221,1723263038819,-151.0,0.000109,2]
[334577222,1723263038828,-151.0,0.000109,2]
[334577225,1723263038838,-151.0,0.000109,2]
[334577226,1723263038848,-151.0,0.000109,2]
[334577228,1723263038857,-151.0,0.000109,2]
[334577230,1723263038867,-151.0,0.000109,2]
[334577232,1723263038876,-151.0,0.000109,2]
[334577234,1723263038885,-300.953902,0.000109,2]
[334577236,1723263038895,-558.010109,0.000109,2]
[334577238,1723263038904,-558.010109,0.000109,2]
[334577240,1723263038914,-558.010109,0.000109,2]
[334577242,1723263038923,-236.777246,0.000109,2]
[334577244,1723263038932,-236.777246,0.000109,2]
[334577246,1723263038942,-558.010109,0.000109,2]
[334577248,1723263038953,-236.777246,0.000109,2]
[334577250,1723263038965,-558.010109,0.000109,2]
[334577251,1723263038975,-558.010109,0.000109,2]
[334577253,1723263038987,-236.777246,0.000109,2]
[334577256,1723263039002,-236.777246,0.000109,2]
[334577257,1723263039011,-236.777246,0.000109,2]
[334577259,1723263039021,-151.0,0.000109,2]
[334577261,1723263039031,-152.749869,0.000109,2]
[334577263,1723263039040,-151.0,0.000109,2]
[334577265,1723263039050,-151.0,0.000109,2]
[334577267,1723263039059,-151.0,0.000109,2]
[334577269,1723263039068,-151.0,0.000109,2]
[334577271,1723263039078,-260.55198,0.000109,2]
[334577273,1723263039087,-756.463269,0.000109,2]
[334577275,1723263039097,-756.463269,0.000109,2]
[334577277,1723263039106,-756.463269,0.000109,2]
[334577279,1723263039115,-756.463269,0.000109,2]
[334577281,1723263039124,-756.463269,0.000109,2]
[334577283,1723263039136,-756.463269,0.000109,2]
[334577285,1723263039146,-151.0,0.000109,2]
[334577287,1723263039155,-151.0,0.000109,2]
[334577289,1723263039165,-151.0,0.000109,2]
[334577291,1723263039174,-151.99136,0.000109,2]
[334577293,1723263039183,-659.965787,0.000109,2]
[334577295,1723263039193,-659.965787,0.000109,2]
[334577297,1723263039202,-659.965787,0.000109,2]
[334577299,1723263039212,-659.965787,0.000109,2]
[334577301,1723263039222,-659.965787,0.000109,2]
[334577303,1723263039232,-659.965787,0.000109,2]
[334577305,1723263039241,-5944.488899,0.000109,2]
[334577307,1723263039250,-5944.488899,0.000109,2]
[334577309,1723263039260,-5944.488899,0.000109,2]
[334577311,1723263039270,-5944.488899,0.000109,2]
[334577313,1723263039279,-151.0,0.000109,2]
[334577314,1723263039288,-5944.488899,0.000109,2]
[334577316,1723263039298,-151.0,0.000109,2]
[334577317,1723263039308,-5944.488899,0.000109,2]
[334577318,1723263039318,-151.0,0.000109,2]
[334577319,1723263039327,-5944.488899,0.000109,2]
[334577320,1723263039337,-151.0,0.000109,2]
[334577321,1723263039346,-5944.488899,0.000109,2]
[334577322,1723263039355,-151.0,0.000109,2]
[334577323,1723263039365,-151.0,0.000109,2]
[334577324,1723263039374,-151.0,0.000109,2]
[334577325,1723263039384,-151.0,0.000109,2]
[334577326,1723263039393,-151.0,0.000109,2]
[334577327,1723263039402,-1082.509653,0.000109,2]
[334577328,1723263039412,-151.0,0.000109,2]
[334577329,1723263039422,-1082.509653,0.000109,2]
[334577330,1723263039431,-151.0,0.000109,2]
[334577331,1723263039440,-1082.509653,0.000109,2]
[334577332,1723263039450,-151.0,0.000109,2]
[334577333,1723263039459,-1082.509653,0.000109,2]
[334577334,1723263039469,-197.1654144,0.000109,2]
[334577335,1723263039479,-151.0,0.00010904,2]
[334577336,1723263039488,-151.0,0.00010904,2]
[334577337,1723263039498,-172.84408,0.00010904,2]
[334577338,1723263039507,-172.84408,0.00010904,2]
[334577339,1723263039517,-151.0,0.00010904,2]
[334577340,1723263039527,-151.280787,0.00010904,2]
[334577341,1723263039537,-151.0,0.00010904,2]
[334577342,1723263039546,-153.910059,0.00010904,2]
[334577343,1723263039556,-151.0,0.00010904,2]
[334577344,1723263039565,-151.0,0.00010904,2]
[334577345,1723263039575,-151.0,0.00010904,2]
[334577346,1723263039584,-698.939472,0.00010904,2]
[334577347,1723263039595,-151.0,0.00010904,2]
[334577348,1723263039604,-698.939472,0.00010904,2]
[334577349,1723263039614,-151.0,0.00010904,2]
[334577350,1723263039623,-151.0,0.00010904,2]
[334577351,1723263039632,-151.0,0.00010904,2]
[334577352,1723263039641,-151.0,0.00010904,2]
[334577353,1723263039651,-905.191564,0.00010904,2]
[334577354,1723263039660,-151.0,0.00010904,2]
[334577355,1723263039669,-151.0,0.00010904,2]
[334577356,1723263039679,-248.634213,0.00010904,2]
[334577357,1723263039689,-152.893277,0.00010904,2]
[334577358,1723263039699,-332.390124,0.00010904,2]
[334577359,1723263039708,-332.390124,0.00010904,2]
[334577360,1723263039718,-151.0,0.00010904,2]
[334577361,1723263039728,-151.0,0.00010904,2]
[334577362,1723263039740,-151.0,0.00010904,2]
[334577363,1723263039749,-151.0,0.00010904,2]
[334577364,1723263039759,-558.010109,0.00010904,2]
[334577365,1723263039769,-558.010109,0.00010904,2]
[334577366,1723263039778,-236.777246,0.00010904,2]
[334577367,1723263039788,-236.777246,0.00010904,2]
[334577368,1723263039797,-558.010109,0.00010904,2]
[334577369,1723263039807,-558.010109,0.00010904,2]
[334577370,1723263039816,-236.777246,0.00010904,2]
[334577371,1723263039826,-236.777246,0.00010904,2]
[334577372,1723263039835,-151.0,0.00010904,2]
[334577373,1723263039845,-756.463269,0.00010904,2]
[334577374,1723263039854,-756.463269,0.00010904,2]
[334577375,1723263039865,-756.463269,0.00010904,2]
[334577376,1723263039875,-756.463269,0.00010904,2]
[334577377,1723263039884,-151.0,0.00010904,2]
[334577378,1723263039893,-659.965787,0.00010904,2]
[334577379,1723263039902,-659.965787,0.00010904,2]
[334577380,1723263039912,-5944.488899,0.00010904,2]
[334577381,1723263039922,-5944.488899,0.00010904,2]
[334577382,1723263039931,-151.0,0.00010904,2]
[334577383,1723263039941,-5944.488899,0.00010904,2]
[334577384,1723263039951,-151.0,0.00010904,2]
[334577385,1723263039965,-5944.488899,0.00010904,2]
[334577386,1723263039975,-258.836258,0.00010904,2]
[334577387,1723263039985,-151.0,0.00010904,2]
[334577388,1723263039995,-1082.509653,0.00010904,2]
[334577389,1723263040005,-151.0,0.00010904,2]
[334577390,1723263040014,-1082.509653,0.00010904,2]
[334577391,1723263040024,-356.46,0.00010904,2]
[334577392,1723263040033,-356.46,0.00010904,2]
[334577393,1723263040043,-356.46,0.00010904,2]
[334577394,1723263040052,-356.46,0.00010904,2]
[334577396,1723263040063,-356.46,0.00010904,2]
[334577398,1723263040072,-356.46,0.00010904,2]
[334577400,1723263040081,-350.28,0.00010904,2]
[334577402,1723263040091,-150.0,0.00010917,2]
[334577404,1723263040100,-150.0,0.00010928,2]
[334577405,1723263040110,-150.0,0.00010933,2]
[334577407,1723263040119,-150.0,0.00010947,2]
[334577408,1723263040129,-150.0,0.00010947,2]
[334577409,1723263040139,-150.0,0.00010955,2]
[334577410,1723263040149,-150.0,0.00010957,2]
[334577411,1723263040158,-250.0,0.00010959,2]
[334577412,1723263040168,-422.35,0.00010959,2]
[334577413,1723263040177,-151.0,0.00010959,2]
[334577414,1723263040187,-151.0,0.00010959,2]
[334577415,1723263040196,-659.965787,0.00010959,2]
[334577416,1723263040205,-659.965787,0.00010959,2]
[334577417,1723263040218,-255.0,0.00010962,2]
[334577418,1723263040229,-150.0,0.00010971,2]
[334577419,1723263040239,-150.0,0.00010996,2]
[334577420,1723263040249,-326.68417522,0.00010997,2]
[334577421,1723263040258,-5141.3274619,0.00010998,2]
[334577422,1723263040267,-151.0,0.00010998,2]
[334577423,1723263040276,-305.901716,0.00010998,2]
[334577424,1723263040286,-305.901716,0.00010998,2]
[334577425,1723263040295,-151.0,0.00010998,2]
[334577426,1723263040305,-173.125742,0.00010998,2]
[334577427,1723263040314,-151.0,0.00010998,2]
[334577428,1723263040323,-151.0,0.00010998,2]
[334577429,1723263040333,-151.0,0.00010998,2]
[334577430,1723263040342,-151.0,0.00010998,2]
[334577431,1723263040353,-151.0,0.00010998,2]
[334577432,1723263040362,-151.0,0.00010998,2]
[334577433,1723263040371,-151.0,0.00010998,2]
[334577434,1723263040381,-151.0,0.00010998,2]
[334577435,1723263040391,-151.0,0.00010998,2]
[334577436,1723263040400,-154.079152,0.00010998,2]
[334577437,1723263040409,-151.0,0.00010998,2]
[334577438,1723263040422,-326.375061,0.00010998,2]
[334577439,1723263040432,-326.375061,0.00010998,2]
[334577440,1723263040442,-151.0,0.00010998,2]
[334577441,1723263040451,-151.0,0.00010998,2]
[334577442,1723263040461,-486.42371,0.00010998,2]
[334577443,1723263040470,-486.42371,0.00010998,2]
[334577444,1723263040479,-151.0,0.00010998,2]
[334577445,1723263040488,-151.0,0.00010998,2]
[334577446,1723263040497,-196.518509,0.00010998,2]
[334577447,1723263040507,-196.518509,0.00010998,2]
[334577448,1723263040516,-151.153502,0.00010998,2]
[334577449,1723263040527,-152.891676,0.00010998,2]
[334577450,1723263040538,-151.0,0.00010998,2]
[334577451,1723263040547,-151.0,0.00010998,2]
[334577452,1723263040557,-333.663136,0.00010998,2]
[334577453,1723263040567,-333.663136,0.00010998,2]
[334577454,1723263040577,-151.0,0.00010998,2]
[334577455,1723263040587,-151.0,0.00010998,2]
[334577456,1723263040596,-172.84408,0.00010998,2]
[334577457,1723263040606,-172.84408,0.00010998,2]
[334577458,1723263040616,-151.0,0.00010998,2]
[334577459,1723263040626,-151.0,0.00010998,2]
[334577460,1723263040636,-151.0,0.00010998,2]
[334577461,1723263040645,-151.0,0.00010998,2]
[334577462,1723263040655,-151.0,0.00010998,2]
[334577463,1723263040665,-190.407862,0.00010998,2]
[334577464,1723263040676,-151.0,0.00010998,2]
[334577465,1723263040825,-151.0,0.00010998,2]
[334577466,1723263040835,-809.123397,0.00010998,2]
[334577467,1723263040845,-809.123397,0.00010998,2]
[334577468,1723263040855,-809.123397,0.00010998,2]
[334577469,1723263040864,-809.123397,0.00010998,2]
[334577470,1723263040873,-151.0,0.00010998,2]
[334577471,1723263040885,-151.0,0.00010998,2]
[334577472,1723263040895,-698.939472,0.00010998,2]
[334577473,1723263040904,-698.939472,0.00010998,2]
[334577474,1723263040913,-151.0,0.00010998,2]
[334577475,1723263040923,-151.0,0.00010998,2]
[334577476,1723263040933,-698.939472,0.00010998,2]
[334577477,1723263040942,-698.939472,0.00010998,2]
[334577478,1723263040953,-151.0,0.00010998,2]
[334577479,1723263040965,-151.0,0.00010998,2]
[334577480,1723263040975,-151.0,0.00010998,2]
[334577481,1723263040986,-151.0,0.00010998,2]
[334577482,1723263040996,-151.0,0.00010998,2]
[334577483,1723263041006,-297.852497,0.00010998,2]
[334577484,1723263041016,-151.0,0.00010998,2]
[334577485,1723263041025,-151.0,0.00010998,2]
[334577486,1723263041035,-151.0,0.00010998,2]
[334577487,1723263041044,-151.0,0.00010998,2]
[334577488,1723263041054,-151.0,0.00010998,2]
[334577489,1723263041065,-151.0,0.00010998,2]
[334577490,1723263041075,-151.0,0.00010998,2]
[334577491,1723263041085,-151.0,0.00010998,2]
[334577492,1723263041095,-905.191564,0.00010998,2]
[334577493,1723263041105,-905.191564,0.00010998,2]
[334577494,1723263041114,-151.0,0.00010998,2]
[334577495,1723263041123,-217.213531,0.00010998,2]
[334577496,1723263041133,-151.0,0.00010998,2]